[Event "January 2 Late 2024"]
[Site "https://www.chess.com"]
[Date "2024.01.02"]
[Round "7"]
[White "Antonio, Jorge Carlos"]
[Black "Gaal, Zsoka"]
[Result "1-0"]
[Board "146"]
[TimeControl "180+1"]
[WhiteFideId "113190"]
[BlackFideId "777765"]
[WhiteElo "2289"]
[BlackElo "2483"]
[WhiteTeam "ARG"]
[BlackTeam "HUN"]
[WhiteClock "0:00:04"]
[BlackClock "0:00:04"]

1. d4 {[%clk 0:03:00]}  e6 {[%clk 0:02:58]} 2. Nf3 {[%clk 0:02:59]}  b6 {[%clk 0:02:59]} 3. g3 {[%clk 0:02:58]}  Bb7 {[%clk 0:02:58]} 4. Bg2 {[%clk 0:02:58]}  Nf6 {[%clk 0:02:59]} 5. O-O {[%clk 0:02:58]}  Be7 {[%clk 0:02:59]} 6. c4 {[%clk 0:02:57]}  O-O {[%clk 0:02:59]} 7. Nc3 {[%clk 0:02:57]}  d6 {[%clk 0:02:55]} 8. Bg5 {[%clk 0:02:53]}  Nbd7 {[%clk 0:02:55]} 9. e3 {[%clk 0:02:53]}  h6 {[%clk 0:02:55]} 10. Bxf6 {[%clk 0:02:53]}  Nxf6 {[%clk 0:02:55]} 11. Rc1 {[%clk 0:02:52]}  a5 {[%clk 0:02:55]} 12. b3 {[%clk 0:02:52]}  Re8 {[%clk 0:02:51]} 13. a4 {[%clk 0:02:51]}  Bf8 {[%clk 0:02:50]} 14. Ne1 {[%clk 0:02:50]}  Qc8 {[%clk 0:02:48]} 15. Bxb7 {[%clk 0:02:49]}  Qxb7 {[%clk 0:02:48]} 16. Ng2 {[%clk 0:02:42]}  e5 {[%clk 0:02:47]} 17. d5 {[%clk 0:02:41]}  g6 {[%clk 0:02:46]} 18. Nh4 {[%clk 0:02:38]}  Nd7 {[%clk 0:02:45]} 19. Qc2 {[%clk 0:02:37]}  Bg7 {[%clk 0:02:43]} 20. Rce1 {[%clk 0:02:25]}  Nc5 {[%clk 0:02:33]} 21. Ne4 {[%clk 0:02:21]}  Nd7 {[%clk 0:02:25]} 22. f4 {[%clk 0:02:15]}  f5 {[%clk 0:02:14]} 23. Nd2 {[%clk 0:02:10]}  Nf8 {[%clk 0:02:10]} 24. e4 {[%clk 0:01:59]}  exf4 {[%clk 0:02:02]} 25. exf5 {[%clk 0:01:36]}  g5 {[%clk 0:02:02]} 26. f6 {[%clk 0:01:25]}  Bxf6 {[%clk 0:01:57]} 27. Nf5 {[%clk 0:01:24]}  Bg7 {[%clk 0:01:41]} 28. g4 {[%clk 0:01:23]}  Nd7 {[%clk 0:01:16]} 29. Re7 {[%clk 0:01:10]}  Rxe7 {[%clk 0:00:52]} 30. Nxe7+ {[%clk 0:01:10]}  Kh8 {[%clk 0:00:49]} 31. Qg6 {[%clk 0:01:03]}  Ne5 {[%clk 0:00:40]} 32. Qe6 {[%clk 0:00:52]}  b5 {[%clk 0:00:38]} 33. axb5 {[%clk 0:00:42]}  Qb6+ {[%clk 0:00:37]} 34. Kg2 {[%clk 0:00:37]}  Qe3 {[%clk 0:00:34]} 35. Nf3 {[%clk 0:00:28]}  Nxf3 {[%clk 0:00:20]} 36. Rxf3 {[%clk 0:00:26]}  Qxe6 {[%clk 0:00:08]} 37. dxe6 {[%clk 0:00:25]}  Re8 {[%clk 0:00:03]} 38. Nd5 {[%clk 0:00:23]}  Rxe6 {[%clk 0:00:03]} 39. Nxc7 {[%clk 0:00:23]}  Re2+ {[%clk 0:00:03]} 40. Rf2 {[%clk 0:00:22]}  Re4 {[%clk 0:00:02]} 41. Nd5 {[%clk 0:00:19]}  Bd4 {[%clk 0:00:02]} 42. Rc2 {[%clk 0:00:18]}  Bc5 {[%clk 0:00:02]} 43. b6 {[%clk 0:00:17]}  Re1 {[%clk 0:00:03]} 44. b7 {[%clk 0:00:17]}  Rg1+ {[%clk 0:00:03]} 45. Kf3 {[%clk 0:00:17]}  Ba7 {[%clk 0:00:03]} 46. Ke4 {[%clk 0:00:18]}  Re1+ {[%clk 0:00:03]} 47. Kf5 {[%clk 0:00:19]}  Re5+ {[%clk 0:00:04]} 48. Kg6 {[%clk 0:00:18]}  Kg8 {[%clk 0:00:05]} 49. Kxh6 {[%clk 0:00:18]}  Kf7 {[%clk 0:00:05]} 50. h4 {[%clk 0:00:13]}  f3 {[%clk 0:00:06]} 51. hxg5 {[%clk 0:00:11]}  Re2 {[%clk 0:00:06]} 52. Rc3 {[%clk 0:00:10]}  f2 {[%clk 0:00:06]} 53. Rf3+ {[%clk 0:00:10]}  Ke6 {[%clk 0:00:07]} 54. Nc7+ {[%clk 0:00:09]}  Kd7 {[%clk 0:00:07]} 55. Nb5 {[%clk 0:00:10]}  Bb8 {[%clk 0:00:06]} 56. Nc3 {[%clk 0:00:08]}  Rc2 {[%clk 0:00:05]} 57. Ne4 {[%clk 0:00:08]}  Kc6 {[%clk 0:00:05]} 58. Rxf2 {[%clk 0:00:08]}  Rc1 {[%clk 0:00:03]} 59. Rf3 {[%clk 0:00:07]}  Kxb7 {[%clk 0:00:03]} 60. Nf6 {[%clk 0:00:06]}  d5 {[%clk 0:00:03]} 61. Nxd5 {[%clk 0:00:05]}  Be5 {[%clk 0:00:03]} 62. g6 {[%clk 0:00:05]}  Rh1+ {[%clk 0:00:03]} 63. Kg5 {[%clk 0:00:05]}  Kc6 {[%clk 0:00:04]} 64. Kf5 {[%clk 0:00:06]}  Bb2 {[%clk 0:00:03]} 65. Ke6 {[%clk 0:00:06]}  Kc5 {[%clk 0:00:03]} 66. Kf7 {[%clk 0:00:06]}  Rh2 {[%clk 0:00:02]} 67. g7 {[%clk 0:00:05]}  Rh7 {[%clk 0:00:03]} 68. Nf6 {[%clk 0:00:03]}  Rxg7+ {[%clk 0:00:03]} 69. Kxg7 {[%clk 0:00:03]}  Kb4 {[%clk 0:00:04]} 70. Kf7 {[%clk 0:00:03]}  a4 {[%clk 0:00:05]} 71. bxa4 {[%clk 0:00:01]}  Kxc4 {[%clk 0:00:04]} 72. g5 {[%clk 0:00:02]}  Bxf6 {[%clk 0:00:04]} 73. g6 {[%clk 0:00:03]}  Bd4 {[%clk 0:00:04]} 74. g7 {[%clk 0:00:03]}  Bxg7 {[%clk 0:00:03]} 75. Kxg7 {[%clk 0:00:03]}  Kb4 {[%clk 0:00:04]} 76. Kf7 {[%clk 0:00:04]}  Ka5 {[%clk 0:00:04]} 77. Ke6 {[%clk 0:00:04]} 1-0

[Event "January 2 Late 2024"]
[Site "https://www.chess.com"]
[Date "2024.01.02"]
[Round "7"]
[White "Urbina Perez, Juan Antonio"]
[Black "Vanek, Tomas"]
[Result "0-1"]
[Board "149"]
[TimeControl "180+1"]
[WhiteFideId "2217368"]
[BlackFideId "313459"]
[WhiteElo "2423"]
[BlackElo "2269"]
[WhiteTeam "ESP"]
[BlackTeam "CZE"]
[WhiteClock "0:00:26"]
[BlackClock "0:00:06"]

1. d4 {[%clk 0:02:55]}  f5 {[%clk 0:02:58]} 2. Nc3 {[%clk 0:02:52]}  Nf6 {[%clk 0:02:58]} 3. Bg5 {[%clk 0:02:49]}  e6 {[%clk 0:02:58]} 4. Bxf6 {[%clk 0:02:49]}  Qxf6 {[%clk 0:02:54]} 5. e4 {[%clk 0:02:49]}  Bb4 {[%clk 0:02:49]} 6. Ne2 {[%clk 0:02:40]}  fxe4 {[%clk 0:02:46]} 7. Qd2 {[%clk 0:02:37]}  O-O {[%clk 0:02:44]} 8. O-O-O {[%clk 0:02:35]}  Qxf2 {[%clk 0:02:38]} 9. a3 {[%clk 0:02:36]}  Bxc3 {[%clk 0:02:27]} 10. Qxc3 {[%clk 0:02:37]}  Nc6 {[%clk 0:02:22]} 11. Ng3 {[%clk 0:02:31]}  Qf4+ {[%clk 0:01:52]} 12. Kb1 {[%clk 0:02:29]}  d5 {[%clk 0:01:52]} 13. Bb5 {[%clk 0:02:27]}  Bd7 {[%clk 0:01:51]} 14. Bxc6 {[%clk 0:02:25]}  bxc6 {[%clk 0:01:45]} 15. Rhf1 {[%clk 0:02:19]}  Qd6 {[%clk 0:01:37]} 16. Qe3 {[%clk 0:02:07]}  e5 {[%clk 0:01:31]} 17. c3 {[%clk 0:02:02]}  exd4 {[%clk 0:01:30]} 18. cxd4 {[%clk 0:02:03]}  Rxf1 {[%clk 0:01:21]} 19. Rxf1 {[%clk 0:02:04]}  Rf8 {[%clk 0:01:21]} 20. Rxf8+ {[%clk 0:01:53]}  Qxf8 {[%clk 0:01:20]} 21. Qg5 {[%clk 0:01:49]}  Qf6 {[%clk 0:01:17]} 22. Qh5 {[%clk 0:01:47]}  Qxd4 {[%clk 0:01:11]} 23. Qg5 {[%clk 0:01:32]}  Qf6 {[%clk 0:01:10]} 24. Qc1 {[%clk 0:01:33]}  d4 {[%clk 0:01:00]} 25. Qc4+ {[%clk 0:01:33]}  Kh8 {[%clk 0:00:47]} 26. Ka1 {[%clk 0:01:18]}  d3 {[%clk 0:00:37]} 27. Nxe4 {[%clk 0:01:18]}  Qf1+ {[%clk 0:00:11]} 28. Ka2 {[%clk 0:01:15]}  Qxg2 {[%clk 0:00:10]} 29. Qf7 {[%clk 0:00:58]}  h6 {[%clk 0:00:10]} 30. Nc3 {[%clk 0:00:44]}  Qg4 {[%clk 0:00:08]} 31. Qf8+ {[%clk 0:00:40]}  Kh7 {[%clk 0:00:07]} 32. Qc5 {[%clk 0:00:34]}  d2 {[%clk 0:00:07]} 33. Qf2 {[%clk 0:00:29]}  Be6+ {[%clk 0:00:07]} 34. Kb1 {[%clk 0:00:27]}  d1=Q+ {[%clk 0:00:06]} 35. Nxd1 {[%clk 0:00:26]}  Qxd1# {[%clk 0:00:06]} 0-1

[Event "January 2 Late 2024"]
[Site "https://www.chess.com"]
[Date "2024.01.02"]
[Round "7"]
[White "Cueto, Jonny"]
[Black "Caglar, Sila"]
[Result "1/2-1/2"]
[Board "153"]
[TimeControl "180+1"]
[WhiteFideId "3300145"]
[BlackFideId "6364063"]
[WhiteElo "2250"]
[BlackElo "2414"]
[WhiteTeam "BOL"]
[BlackTeam "TUR"]
[WhiteClock "0:00:21"]
[BlackClock "0:00:18"]

1. d4 {[%clk 0:03:00]}  d6 {[%clk 0:02:36]} 2. Bf4 {[%clk 0:02:58]}  Nf6 {[%clk 0:02:36]} 3. Nc3 {[%clk 0:02:58]}  g6 {[%clk 0:02:36]} 4. e4 {[%clk 0:02:59]}  Bg7 {[%clk 0:02:37]} 5. Qd2 {[%clk 0:02:59]}  h6 {[%clk 0:02:37]} 6. h4 {[%clk 0:02:58]}  b6 {[%clk 0:02:33]} 7. f3 {[%clk 0:02:57]}  Bb7 {[%clk 0:02:32]} 8. O-O-O {[%clk 0:02:53]}  Nbd7 {[%clk 0:02:31]} 9. e5 {[%clk 0:02:49]}  Nd5 {[%clk 0:02:28]} 10. Nxd5 {[%clk 0:02:46]}  Bxd5 {[%clk 0:02:29]} 11. c4 {[%clk 0:02:45]}  Bb7 {[%clk 0:02:29]} 12. exd6 {[%clk 0:02:38]}  cxd6 {[%clk 0:02:30]} 13. Kb1 {[%clk 0:02:28]}  Nf8 {[%clk 0:02:25]} 14. g4 {[%clk 0:02:19]}  Ne6 {[%clk 0:02:25]} 15. Be3 {[%clk 0:02:20]}  Rc8 {[%clk 0:02:23]} 16. Nh3 {[%clk 0:02:20]}  Bxf3 {[%clk 0:02:21]} 17. Bd3 {[%clk 0:02:18]}  Bxg4 {[%clk 0:02:18]} 18. Rdf1 {[%clk 0:02:08]}  f5 {[%clk 0:02:04]} 19. h5 {[%clk 0:01:53]}  Bxh5 {[%clk 0:01:55]} 20. Nf4 {[%clk 0:01:51]}  Nxf4 {[%clk 0:01:54]} 21. Bxf4 {[%clk 0:01:51]}  Bxd4 {[%clk 0:01:39]} 22. Bxf5 {[%clk 0:01:39]}  e5 {[%clk 0:01:25]} 23. Bxh6 {[%clk 0:01:31]}  gxf5 {[%clk 0:00:58]} 24. Rxh5 {[%clk 0:01:28]}  f4 {[%clk 0:00:55]} 25. Bg5 {[%clk 0:01:22]}  Rxh5 {[%clk 0:00:54]} 26. Bxd8 {[%clk 0:01:23]}  Kxd8 {[%clk 0:00:52]} 27. Qg2 {[%clk 0:01:16]}  Rh8 {[%clk 0:00:48]} 28. Qg7 {[%clk 0:01:14]}  Rh2 {[%clk 0:00:45]} 29. Qg8+ {[%clk 0:00:49]}  Kc7 {[%clk 0:00:41]} 30. Qf7+ {[%clk 0:00:43]}  Kb8 {[%clk 0:00:40]} 31. Qd5 {[%clk 0:00:20]}  Rxb2+ {[%clk 0:00:37]} 32. Kc1 {[%clk 0:00:20]}  Rxa2 {[%clk 0:00:31]} 33. Qxd6+ {[%clk 0:00:20]}  Rc7 {[%clk 0:00:28]} 34. Qd8+ {[%clk 0:00:20]}  Rc8 {[%clk 0:00:25]} 35. Qd6+ {[%clk 0:00:21]}  Kb7 {[%clk 0:00:24]} 36. Qd7+ {[%clk 0:00:20]}  Rc7 {[%clk 0:00:21]} 37. Qd5+ {[%clk 0:00:21]}  Ka6 {[%clk 0:00:18]} 38. Qb5+ {[%clk 0:00:21]}  Kb7 {[%clk 0:00:18]} 39. Qd5+ {[%clk 0:00:22]}  Rc6 {[%clk 0:00:17]} 40. Qd7+ {[%clk 0:00:21]}  Rc7 {[%clk 0:00:18]} 41. Qd5+ {[%clk 0:00:21]} 1/2-1/2

[Event "January 2 Late 2024"]
[Site "https://www.chess.com"]
[Date "2024.01.02"]
[Round "7"]
[White "Clawitter, Craig"]
[Black "Skibbe, Willi"]
[Result "1-0"]
[Board "157"]
[TimeControl "180+1"]
[WhiteFideId "2023105"]
[BlackFideId "4682190"]
[WhiteElo "2231"]
[BlackElo "2396"]
[WhiteTeam "USA"]
[BlackTeam "GER"]
[WhiteClock "0:00:08"]
[BlackClock "0:00:00"]

1. e4 {[%clk 0:03:00]}  e6 {[%clk 0:02:58]} 2. d4 {[%clk 0:03:00]}  d5 {[%clk 0:02:56]} 3. e5 {[%clk 0:03:00]}  c5 {[%clk 0:02:53]} 4. c3 {[%clk 0:03:01]}  Nc6 {[%clk 0:02:53]} 5. Nf3 {[%clk 0:03:01]}  Bd7 {[%clk 0:02:53]} 6. Be2 {[%clk 0:03:01]}  Nge7 {[%clk 0:02:39]} 7. O-O {[%clk 0:02:59]}  Ng6 {[%clk 0:02:39]} 8. g3 {[%clk 0:02:56]}  f6 {[%clk 0:02:32]} 9. exf6 {[%clk 0:02:26]}  gxf6 {[%clk 0:02:31]} 10. h4 {[%clk 0:02:19]}  Qc7 {[%clk 0:02:25]} 11. h5 {[%clk 0:02:17]}  Nge7 {[%clk 0:02:22]} 12. Kg2 {[%clk 0:01:54]}  cxd4 {[%clk 0:02:12]} 13. cxd4 {[%clk 0:01:54]}  Nf5 {[%clk 0:02:09]} 14. Nc3 {[%clk 0:01:42]}  a6 {[%clk 0:01:57]} 15. Bf4 {[%clk 0:01:06]}  Bd6 {[%clk 0:01:56]} 16. Bxd6 {[%clk 0:01:04]}  Qxd6 {[%clk 0:01:57]} 17. Rc1 {[%clk 0:00:28]}  O-O-O {[%clk 0:01:45]} 18. Bd3 {[%clk 0:00:22]}  Nfe7 {[%clk 0:01:09]} 19. Na4 {[%clk 0:00:17]}  Kb8 {[%clk 0:01:09]} 20. Nc5 {[%clk 0:00:15]}  e5 {[%clk 0:01:05]} 21. Qb3 {[%clk 0:00:13]}  Na5 {[%clk 0:01:01]} 22. Qb4 {[%clk 0:00:12]}  e4 {[%clk 0:00:32]} 23. Nxa6+ {[%clk 0:00:12]}  Qxa6 {[%clk 0:00:30]} 24. Bxa6 {[%clk 0:00:11]}  exf3+ {[%clk 0:00:31]} 25. Kxf3 {[%clk 0:00:11]}  Nec6 {[%clk 0:00:29]} 26. Qb6 {[%clk 0:00:11]}  Bf5 {[%clk 0:00:26]} 27. Rxc6 {[%clk 0:00:11]}  Be4+ {[%clk 0:00:25]} 28. Kf4 {[%clk 0:00:11]}  Rd7 {[%clk 0:00:16]} 29. Rd6 {[%clk 0:00:10]}  Rc7 {[%clk 0:00:15]} 30. Bxb7 {[%clk 0:00:10]}  Rxb7 {[%clk 0:00:15]} 31. Qxa5 {[%clk 0:00:10]}  f5 {[%clk 0:00:14]} 32. Re6 {[%clk 0:00:10]}  Rg8 {[%clk 0:00:13]} 33. f3 {[%clk 0:00:08]}  Bc2 {[%clk 0:00:00]} 34. Rd6 {[%clk 0:00:08]} 1-0

[Event "January 2 Late 2024"]
[Site "https://www.chess.com"]
[Date "2024.01.02"]
[Round "7"]
[White "Rios Escobar, Adan"]
[Black "Keller, Peter"]
[Result "1-0"]
[Board "158"]
[TimeControl "180+1"]
[WhiteFideId "3403645"]
[BlackFideId "1272105"]
[WhiteElo "2372"]
[BlackElo "2210"]
[WhiteTeam "CHI"]
[BlackTeam "GER"]
[WhiteClock "0:00:18"]
[BlackClock "0:00:14"]

1. d4 {[%clk 0:02:54]}  Nf6 {[%clk 0:02:52]} 2. g3 {[%clk 0:02:46]}  d5 {[%clk 0:02:47]} 3. Nf3 {[%clk 0:02:45]}  Bf5 {[%clk 0:02:44]} 4. c4 {[%clk 0:02:44]}  e6 {[%clk 0:02:45]} 5. Nc3 {[%clk 0:02:42]}  c6 {[%clk 0:02:44]} 6. Nh4 {[%clk 0:02:42]}  Be4 {[%clk 0:02:28]} 7. f3 {[%clk 0:02:39]}  Bg6 {[%clk 0:02:27]} 8. Qb3 {[%clk 0:02:37]}  Qb6 {[%clk 0:02:22]} 9. c5 {[%clk 0:02:21]}  Qxb3 {[%clk 0:02:15]} 10. axb3 {[%clk 0:02:22]}  Nbd7 {[%clk 0:02:03]} 11. b4 {[%clk 0:02:08]}  e5 {[%clk 0:01:46]} 12. Nxg6 {[%clk 0:02:05]}  hxg6 {[%clk 0:01:46]} 13. e3 {[%clk 0:01:44]}  Be7 {[%clk 0:01:42]} 14. b5 {[%clk 0:01:36]}  e4 {[%clk 0:01:30]} 15. fxe4 {[%clk 0:01:23]}  Nxe4 {[%clk 0:01:31]} 16. Nxe4 {[%clk 0:01:23]}  dxe4 {[%clk 0:01:30]} 17. bxc6 {[%clk 0:01:23]}  bxc6 {[%clk 0:01:28]} 18. Ra6 {[%clk 0:01:24]}  Nb8 {[%clk 0:01:26]} 19. Ra4 {[%clk 0:01:21]}  Nd7 {[%clk 0:01:19]} 20. Ba6 {[%clk 0:01:12]}  Rb8 {[%clk 0:01:00]} 21. O-O {[%clk 0:01:10]}  f5 {[%clk 0:00:53]} 22. Bc4 {[%clk 0:00:55]}  Rb7 {[%clk 0:00:42]} 23. b4 {[%clk 0:00:53]}  Kd8 {[%clk 0:00:24]} 24. Bd2 {[%clk 0:00:53]}  Kc7 {[%clk 0:00:23]} 25. Rfa1 {[%clk 0:00:51]}  Ra8 {[%clk 0:00:22]} 26. d5 {[%clk 0:00:43]}  Ne5 {[%clk 0:00:21]} 27. d6+ {[%clk 0:00:32]}  Bxd6 {[%clk 0:00:21]} 28. cxd6+ {[%clk 0:00:31]}  Kxd6 {[%clk 0:00:14]} 29. Be2 {[%clk 0:00:18]} 1-0

[Event "January 2 Late 2024"]
[Site "https://www.chess.com"]
[Date "2024.01.02"]
[Round "7"]
[White "Porat, Tori"]
[Black "Paragua, Megan Althea"]
[Result "0-1"]
[Board "159"]
[TimeControl "180+1"]
[WhiteFideId "30982626"]
[BlackFideId "30973007"]
[WhiteElo "2177"]
[BlackElo "2369"]
[WhiteTeam "USA"]
[BlackTeam "USA"]
[WhiteClock "0:00:47"]
[BlackClock "0:01:04"]

1. d4 {[%clk 0:03:00]}  Nf6 {[%clk 0:02:59]} 2. c4 {[%clk 0:03:01]}  e6 {[%clk 0:02:59]} 3. Nc3 {[%clk 0:03:01]}  d5 {[%clk 0:02:59]} 4. Nf3 {[%clk 0:03:01]}  Be7 {[%clk 0:02:57]} 5. Bg5 {[%clk 0:03:01]}  O-O {[%clk 0:02:44]} 6. e3 {[%clk 0:03:00]}  h6 {[%clk 0:02:44]} 7. Bh4 {[%clk 0:03:00]}  b6 {[%clk 0:02:44]} 8. Be2 {[%clk 0:02:59]}  Bb7 {[%clk 0:02:41]} 9. O-O {[%clk 0:02:59]}  Nbd7 {[%clk 0:02:39]} 10. Bd3 {[%clk 0:02:58]}  Ne4 {[%clk 0:02:39]} 11. Bxe7 {[%clk 0:02:52]}  Qxe7 {[%clk 0:02:40]} 12. cxd5 {[%clk 0:02:46]}  exd5 {[%clk 0:02:37]} 13. Rc1 {[%clk 0:02:45]}  Ndf6 {[%clk 0:02:33]} 14. Ne5 {[%clk 0:02:41]}  c5 {[%clk 0:02:30]} 15. dxc5 {[%clk 0:02:39]}  Qxe5 {[%clk 0:02:24]} 16. cxb6 {[%clk 0:02:36]}  axb6 {[%clk 0:02:16]} 17. f4 {[%clk 0:02:35]}  Qe7 {[%clk 0:02:13]} 18. Bxe4 {[%clk 0:02:30]}  dxe4 {[%clk 0:02:08]} 19. Kh1 {[%clk 0:02:24]}  Rfd8 {[%clk 0:02:03]} 20. Qc2 {[%clk 0:02:24]}  Ba6 {[%clk 0:02:00]} 21. Rg1 {[%clk 0:02:22]}  Bd3 {[%clk 0:01:57]} 22. Qf2 {[%clk 0:02:21]}  Nd5 {[%clk 0:01:53]} 23. g4 {[%clk 0:02:19]}  Nxc3 {[%clk 0:01:49]} 24. Rxc3 {[%clk 0:02:16]}  Rxa2 {[%clk 0:01:47]} 25. g5 {[%clk 0:02:14]}  h5 {[%clk 0:01:40]} 26. f5 {[%clk 0:02:12]}  Qe5 {[%clk 0:01:33]} 27. Rgc1 {[%clk 0:01:36]}  Ra5 {[%clk 0:01:12]} 28. Rc8 {[%clk 0:01:30]}  Rxc8 {[%clk 0:01:09]} 29. Rxc8+ {[%clk 0:01:29]}  Kh7 {[%clk 0:01:07]} 30. g6+ {[%clk 0:01:28]}  fxg6 {[%clk 0:01:07]} 31. fxg6+ {[%clk 0:01:28]}  Kxg6 {[%clk 0:01:07]} 32. Qf8 {[%clk 0:01:00]}  Ra1+ {[%clk 0:01:05]} 33. Kg2 {[%clk 0:00:47]}  Qg5+ {[%clk 0:01:04]} 0-1

[Event "January 2 Late 2024"]
[Site "https://www.chess.com"]
[Date "2024.01.02"]
[Round "7"]
[White "Prokhorov, Oleksandr"]
[Black "Clarke, Matthew"]
[Result "0-1"]
[Board "163"]
[TimeControl "180+1"]
[WhiteFideId "14105578"]
[BlackFideId "3227804"]
[WhiteElo "2338"]
[BlackElo "2143"]
[WhiteTeam "UKR"]
[BlackTeam "AUS"]
[WhiteClock "0:00:03"]
[BlackClock "0:00:04"]

1. e4 {[%clk 0:03:00]}  e5 {[%clk 0:03:00]} 2. Nf3 {[%clk 0:02:59]}  Nc6 {[%clk 0:03:01]} 3. c3 {[%clk 0:02:59]}  d5 {[%clk 0:02:45]} 4. Qa4 {[%clk 0:02:58]}  Qd6 {[%clk 0:02:21]} 5. exd5 {[%clk 0:02:52]}  Qxd5 {[%clk 0:02:21]} 6. Bc4 {[%clk 0:02:35]}  Qe4+ {[%clk 0:01:56]} 7. Kf1 {[%clk 0:02:35]}  Be6 {[%clk 0:01:22]} 8. d3 {[%clk 0:02:22]}  Bxc4 {[%clk 0:01:22]} 9. dxc4 {[%clk 0:02:16]}  O-O-O {[%clk 0:00:46]} 10. Be3 {[%clk 0:02:07]}  Qd3+ {[%clk 0:00:25]} 11. Ke1 {[%clk 0:02:05]}  e4 {[%clk 0:00:20]} 12. Ng5 {[%clk 0:01:49]}  Nh6 {[%clk 0:00:16]} 13. Nd2 {[%clk 0:01:29]}  Bc5 {[%clk 0:00:11]} 14. Bxc5 {[%clk 0:01:07]}  Qxd2+ {[%clk 0:00:11]} 15. Kf1 {[%clk 0:01:08]}  Qxg5 {[%clk 0:00:12]} 16. Be3 {[%clk 0:01:07]}  Qh5 {[%clk 0:00:10]} 17. Qc2 {[%clk 0:01:01]}  Rd3 {[%clk 0:00:09]} 18. b4 {[%clk 0:00:46]}  Rhd8 {[%clk 0:00:09]} 19. Re1 {[%clk 0:00:45]}  Nf5 {[%clk 0:00:07]} 20. b5 {[%clk 0:00:45]}  Nxe3+ {[%clk 0:00:06]} 21. fxe3 {[%clk 0:00:44]}  Rd2 {[%clk 0:00:06]} 22. Qxe4 {[%clk 0:00:42]}  Ne5 {[%clk 0:00:05]} 23. h3 {[%clk 0:00:27]}  Nd3 {[%clk 0:00:04]} 24. Rb1 {[%clk 0:00:19]}  Nf2 {[%clk 0:00:03]} 25. Qf4 {[%clk 0:00:05]}  Nxh1 {[%clk 0:00:03]} 26. b6 {[%clk 0:00:05]}  Rd1+ {[%clk 0:00:03]} 27. Rxd1 {[%clk 0:00:03]}  Qxd1# {[%clk 0:00:04]} 0-1

[Event "January 2 Late 2024"]
[Site "https://www.chess.com"]
[Date "2024.01.02"]
[Round "7"]
[White "Reprintsev, Alexander"]
[Black "Jahnz, Fabian"]
[Result "1-0"]
[Board "164"]
[TimeControl "180+1"]
[WhiteFideId "14100541"]
[BlackFideId "4653300"]
[WhiteElo "2472"]
[BlackElo "2333"]
[WhiteTeam "UKR"]
[BlackTeam "GER"]
[WhiteClock "0:00:44"]
[BlackClock "0:01:01"]

1. e4 {[%clk 0:03:00]}  c6 {[%clk 0:02:59]} 2. Nc3 {[%clk 0:02:59]}  d5 {[%clk 0:03:00]} 3. Nf3 {[%clk 0:02:59]}  dxe4 {[%clk 0:03:00]} 4. Nxe4 {[%clk 0:02:59]}  Nf6 {[%clk 0:03:01]} 5. Qe2 {[%clk 0:02:59]}  Nxe4 {[%clk 0:03:01]} 6. Qxe4 {[%clk 0:02:59]}  Qd5 {[%clk 0:03:01]} 7. Qf4 {[%clk 0:02:57]}  Qf5 {[%clk 0:03:01]} 8. Qe3 {[%clk 0:02:57]}  Qe6 {[%clk 0:03:02]} 9. Be2 {[%clk 0:02:57]}  Qxe3 {[%clk 0:03:00]} 10. fxe3 {[%clk 0:02:57]}  f6 {[%clk 0:03:01]} 11. d4 {[%clk 0:02:46]}  Nd7 {[%clk 0:02:57]} 12. Bd2 {[%clk 0:02:44]}  e5 {[%clk 0:02:58]} 13. O-O-O {[%clk 0:02:43]}  exd4 {[%clk 0:02:57]} 14. exd4 {[%clk 0:02:42]}  Bd6 {[%clk 0:02:56]} 15. Bc4 {[%clk 0:02:40]}  Nb6 {[%clk 0:02:51]} 16. Rhe1+ {[%clk 0:02:40]}  Kd8 {[%clk 0:02:52]} 17. Bb3 {[%clk 0:02:38]}  Bg4 {[%clk 0:02:50]} 18. h3 {[%clk 0:02:37]}  Bxf3 {[%clk 0:02:50]} 19. gxf3 {[%clk 0:02:38]}  Kc7 {[%clk 0:02:50]} 20. c4 {[%clk 0:02:37]}  c5 {[%clk 0:02:31]} 21. dxc5 {[%clk 0:02:34]}  Bxc5 {[%clk 0:02:32]} 22. Bf4+ {[%clk 0:02:34]}  Kc8 {[%clk 0:02:22]} 23. Bc2 {[%clk 0:02:32]}  g6 {[%clk 0:02:21]} 24. Bd6 {[%clk 0:02:19]}  Bxd6 {[%clk 0:02:08]} 25. Rxd6 {[%clk 0:02:17]}  Rd8 {[%clk 0:02:09]} 26. Rxf6 {[%clk 0:02:00]}  Nxc4 {[%clk 0:02:09]} 27. Re7 {[%clk 0:01:55]}  a6 {[%clk 0:01:51]} 28. Rxh7 {[%clk 0:01:52]}  Nd6 {[%clk 0:01:52]} 29. Rxg6 {[%clk 0:01:45]}  Kb8 {[%clk 0:01:52]} 30. Rhh6 {[%clk 0:01:36]}  Nf7 {[%clk 0:01:52]} 31. Rh5 {[%clk 0:01:31]}  Ka7 {[%clk 0:01:51]} 32. Rc5 {[%clk 0:01:18]}  Rh8 {[%clk 0:01:42]} 33. Rc7 {[%clk 0:01:15]}  Nd8 {[%clk 0:01:21]} 34. Bf5 {[%clk 0:00:50]}  Rb8 {[%clk 0:01:16]} 35. Rgg7 {[%clk 0:00:45]}  Rf8 {[%clk 0:01:10]} 36. Bg4 {[%clk 0:00:45]}  Nc6 {[%clk 0:01:01]} 37. Rxc6 {[%clk 0:00:44]} 1-0

[Event "January 2 Late 2024"]
[Site "https://www.chess.com"]
[Date "2024.01.02"]
[Round "7"]
[White "Romero Ruscalleda, Josep"]
[Black "Desideri, Ricardo Maruchi"]
[Result "1-0"]
[Board "165"]
[TimeControl "180+1"]
[WhiteFideId "2231859"]
[BlackFideId "2110440"]
[WhiteElo "2314"]
[BlackElo "1997"]
[WhiteTeam "ESP"]
[BlackTeam "BRA"]
[WhiteClock "0:00:27"]
[BlackClock "0:00:00"]

1. e4 {[%clk 0:03:00]}  c5 {[%clk 0:02:54]} 2. c3 {[%clk 0:03:00]}  e6 {[%clk 0:02:52]} 3. d4 {[%clk 0:02:59]}  cxd4 {[%clk 0:02:51]} 4. cxd4 {[%clk 0:02:59]}  a6 {[%clk 0:02:51]} 5. Nc3 {[%clk 0:02:58]}  Nf6 {[%clk 0:02:50]} 6. Nf3 {[%clk 0:02:57]}  b5 {[%clk 0:02:43]} 7. e5 {[%clk 0:02:53]}  Ng8 {[%clk 0:02:39]} 8. Bd3 {[%clk 0:02:52]}  Bb7 {[%clk 0:02:39]} 9. O-O {[%clk 0:02:51]}  Ne7 {[%clk 0:02:35]} 10. Bg5 {[%clk 0:02:44]}  h6 {[%clk 0:02:33]} 11. Bh4 {[%clk 0:02:44]}  g5 {[%clk 0:02:33]} 12. Bg3 {[%clk 0:02:44]}  Nd5 {[%clk 0:02:33]} 13. Ne4 {[%clk 0:02:43]}  Be7 {[%clk 0:02:32]} 14. a3 {[%clk 0:02:38]}  Nc6 {[%clk 0:02:21]} 15. h3 {[%clk 0:02:28]}  Rg8 {[%clk 0:02:16]} 16. Qd2 {[%clk 0:02:18]}  Na5 {[%clk 0:02:09]} 17. Rad1 {[%clk 0:02:12]}  Nc4 {[%clk 0:01:59]} 18. Qe2 {[%clk 0:01:50]}  Rc8 {[%clk 0:01:56]} 19. Rc1 {[%clk 0:01:44]}  Nf4 {[%clk 0:01:45]} 20. Bxf4 {[%clk 0:01:42]}  gxf4 {[%clk 0:01:46]} 21. Kh2 {[%clk 0:01:33]}  Nb6 {[%clk 0:01:17]} 22. Nd6+ {[%clk 0:01:19]}  Bxd6 {[%clk 0:01:17]} 23. exd6 {[%clk 0:01:19]}  Nd5 {[%clk 0:01:13]} 24. Be4 {[%clk 0:01:11]}  Qf6 {[%clk 0:01:03]} 25. Ne5 {[%clk 0:01:07]}  Qg7 {[%clk 0:00:57]} 26. Rxc8+ {[%clk 0:01:04]}  Bxc8 {[%clk 0:00:56]} 27. Bxd5 {[%clk 0:01:02]}  f6 {[%clk 0:00:14]} 28. Nd3 {[%clk 0:00:35]}  Kf8 {[%clk 0:00:09]} 29. Re1 {[%clk 0:00:29]}  f3 {[%clk 0:00:00]} 30. Bxf3 {[%clk 0:00:27]} 1-0